bitfinex-derivatives/quotes_ETHF0:USTF0_20251025
["timestamp","ask_amount","ask_price","bid_price","bid_amount"]
[1761365950505,0.90772377,3937.7,3937.6,0.7024]
[1761365950710,10.02672377,3937.7,3937.6,1.1459]
[1761365951009,10.02572377,3937.7,3937.6,1.1459]
[1761365952105,0.90772377,3937.7,3937.6,1.1459]
[1761365952311,10.02172377,3937.7,3937.6,1.1459]
[1761365954309,0.90772377,3937.9,3937.7,0.7024]
[1761365954516,0.90772377,3938.3,3938.1,0.7024]
[1761365954812,7.321,3938.2,3938.1,0.7024]
[1761365956502,7.321,3938.2,3938.0,0.2732]
[1761365956710,13.22452377,3938.1,3937.5,0.9756]
[1761365956909,13.22452377,3938.1,3937.7,0.2546]
[1761365957213,13.22452377,3938.1,3937.8,0.7024]
[1761365957909,9.108,3938.0,3937.8,0.7024]
[1761365958110,10.01572377,3938.0,3937.8,0.7024]
[1761365958604,9.108,3938.0,3937.8,0.7024]
[1761365958809,4.56853385,3938.1,3937.8,0.7024]
[1761365959009,9.107,3938.0,3937.5,0.9756]
[1761365959206,0.90742773,3937.7,3937.5,0.2732]
[1761365959517,10.01242773,3937.6,3937.2,0.7024]
[1761365959721,10.01242773,3937.6,3937.4,0.957]
[1761365960214,10.01242773,3937.6,3937.2,0.7024]
[1761365960215,9.105,3937.6,3937.2,0.7024]
[1761365960416,0.90816561,3937.4,3937.2,0.7024]
[1761365960614,0.90816561,3937.3,3937.2,0.7024]
[1761365961216,4.56853385,3937.3,3937.1,0.00239616]
[1761365961417,10.46773385,3937.2,3937.1,0.00239616]
[1761365961725,9.107,3937.2,3937.1,0.00239616]
[1761365962018,10.92303634,3937.2,3937.0,0.2732]
[1761365962316,10.92303634,3937.2,3936.8,0.7024]
[1761365962716,1.81503634,3937.2,3936.8,0.7024]
[1761365962910,3.2078,3937.3,3936.8,0.70481922]
[1761365962911,9.107,3937.1,3936.8,0.70481922]
[1761365963121,9.107,3937.1,3937.0,0.9756]
[1761365963311,9.107,3937.1,3936.8,0.00241922]
[1761365963510,1.81503634,3937.2,3937.0,0.7167]
[1761365963712,3.2078,3937.3,3937.0,0.2732]
[1761365963713,10.92003634,3937.1,3937.0,0.2732]
[1761365964427,10.92003634,3937.1,3936.8,0.70481922]
[1761365966125,10.92003634,3937.1,3936.8,0.95941922]
[1761365966325,1.81503634,3937.0,3936.8,0.95941922]
[1761365967126,1.81503634,3937.0,3936.8,0.70481922]
[1761365967322,1.81503634,3937.0,3936.9,0.957]
[1761365967528,10.92403634,3937.0,3936.9,0.957]
[1761365968326,10.92403634,3937.0,3936.9,1.8662]
[1761365968518,10.92403634,3937.0,3936.9,1.4005]
[1761365968922,10.92403634,3937.0,3936.9,0.957]
[1761365969926,9.109,3937.0,3936.9,0.957]
[1761365971126,1.81503634,3937.1,3937.0,0.9756]
[1761365971329,10.91503634,3937.1,3937.0,0.9756]
[1761365971725,1.81503634,3937.1,3937.0,0.9756]
[1761365971930,10.91403634,3937.1,3936.8,0.00241922]
[1761365972128,10.91403634,3937.1,3936.8,0.70481922]
[1761365972539,9.099,3937.0,3936.8,0.70481922]
[1761365973427,1.81503634,3937.1,3937.0,0.2732]
[1761365973629,10.91103634,3937.1,3937.0,0.9756]
[1761365978038,10.91103634,3937.1,3936.8,0.00241922]
[1761365978243,1.81503634,3937.0,3936.8,0.71001922]
[1761365979843,9.086,3936.9,3936.8,0.71001922]
[1761365982244,9.086,3936.9,3936.8,1.91021922]
[1761365983638,1.81503634,3937.0,3936.8,1.91021922]
[1761365983944,1.81503634,3937.0,3936.9,1.9078]
[1761365984137,10.89503634,3937.0,3936.9,1.9078]
[1761365985145,9.08,3937.0,3936.9,1.9078]
[1761365986235,5.47553058,3937.3,3937.0,0.972]
[1761365986442,5.47553058,3937.3,3937.2,1.9078]
[1761365986746,14.11113388,3937.3,3937.2,1.9078]
[1761365988241,12.2868,3937.3,3937.2,1.9078]
[1761365988949,12.2878,3937.3,3937.2,1.9078]
[1761365989144,3.2078,3937.3,3937.2,1.9078]
[1761365989338,12.2888,3937.3,3937.2,1.9078]
[1761365990049,14.11552939,3937.3,3937.2,1.9078]
[1761365990244,12.2888,3937.3,3937.2,1.9078]
[1761365991145,3.2078,3937.3,3937.2,1.9078]
[1761365991351,12.2858,3937.3,3937.2,1.9078]
[1761365991845,3.2078,3937.3,3937.2,4.50456581]
[1761365992048,1.82715889,3937.6,3937.5,1.9176]
[1761365992349,9.076,3937.6,3937.5,1.9176]
[1761365992551,9.076,3937.6,3937.5,4.76896581]
[1761365992747,1.82715889,3937.6,3937.5,4.76896581]
[1761365993052,10.90215889,3937.6,3937.5,4.76896581]
[1761365993346,1.82715889,3937.8,3937.7,0.9456]
[1761365993539,3.2078,3938.3,3938.2,0.7076]
[1761365993743,12.2988,3938.3,3938.2,0.9622]
[1761365993940,12.2988,3938.3,3938.2,0.7076]
[1761365994143,14.12338419,3938.3,3938.2,1.1683]
[1761365994649,12.2988,3938.3,3938.2,1.1683]
[1761365995152,14.12257018,3938.3,3938.2,1.1683]
[1761365996356,14.12257018,3938.3,3938.2,0.7076]
[1761365997245,12.2988,3938.3,3938.2,0.7076]
[1761366001047,3.2078,3938.3,3938.2,1.1484]
[1761366001253,12.2898,3938.3,3938.2,1.1484]
[1761366001548,3.2078,3938.3,3938.2,0.7076]
[1761366001755,12.2878,3938.3,3938.2,1.6245]
[1761366002253,12.2878,3938.3,3938.2,0.7076]
[1761366003150,0.7584,3938.1,3937.2,2.7646]
[1761366003349,0.7584,3938.1,3936.8,0.00241922]
[1761366003350,4.7515,3937.7,3937.6,2.59676581]
[1761366003557,0.4328,3937.4,3937.3,3.51366581]
[1761366003757,9.5108,3937.4,3937.3,3.51366581]
[1761366004053,9.5108,3937.4,3937.3,6.11043162]
[1761366004454,10.4214965,3937.4,3937.3,6.11043162]
[1761366004954,10.8887965,3937.4,3937.3,6.11043162]
[1761366005256,10.8887965,3937.4,3937.3,6.81943162]
[1761366005657,11.5323965,3937.4,3937.3,6.81943162]
[1761366006852,10.6217,3937.4,3937.3,3.74656581]
[1761366007059,10.6217,3937.4,3937.3,3.30576581]
[1761366007559,10.6217,3937.4,3937.3,2.59676581]
[1761366007751,10.6217,3937.4,3937.3,3.30686581]
[1761366008253,10.6217,3937.4,3937.3,0.7101]
[1761366013057,1.628,3937.1,3937.0,0.4629]
[1761366013258,10.696,3937.1,3937.0,0.4629]
[1761366014757,0.4315,3936.9,3936.8,0.00241922]
[1761366015060,1.628,3936.9,3936.8,0.00241922]
[1761366015362,1.628,3936.2,3936.1,1.6582]
[1761366015559,7.55785063,3936.2,3936.1,4.25496581]
[1761366015860,0.264,3936.0,3935.4,3.9179]
[1761366016166,1.36808988,3935.6,3935.5,0.7101]
[1761366016355,9.81217618,3935.6,3935.5,4.51416581]
[1761366016750,11.00867618,3935.6,3935.5,4.25496581]
[1761366016968,10.09700052,3935.6,3935.5,4.25496581]
[1761366017160,11.4650904,3935.6,3935.5,3.05966581]
[1761366017362,11.4650904,3935.6,3935.5,2.59676581]
[1761366018060,1.892,3935.5,3935.4,0.00248114]
[1761366018455,5.0998,3935.5,3935.4,0.00248114]
[1761366019262,6.4641906,3935.5,3935.4,0.00248114]
[1761366020258,5.0998,3935.5,3935.4,0.00248114]
[1761366020660,1.628,3934.7,3934.6,0.9481]
[1761366020866,10.731,3934.7,3934.6,3.54486581]
[1761366021162,10.731,3934.7,3934.6,4.25496581]
[1761366021559,10.731,3934.7,3934.6,4.25777105]
[1761366025070,10.731,3934.7,3934.6,2.59957105]
[1761366025269,10.731,3934.7,3934.6,2.11386579]
[1761366025471,10.731,3934.7,3934.6,0.00280524]
[1761366025970,13.9388,3934.7,3934.6,0.00280524]
[1761366035163,13.9388,3934.7,3934.6,2.11386579]
[1761366036473,14.8478868,3934.7,3934.6,2.11386579]
[1761366037372,5.7448868,3934.7,3934.6,3.77206579]
[1761366037566,10.723,3934.7,3934.6,3.77206579]
[1761366040273,11.6320868,3934.7,3934.6,3.77206579]
[1761366041280,10.723,3934.7,3934.6,3.77206579]
[1761366041674,10.716,3934.7,3934.6,3.77206579]
[1761366042275,11.62532294,3934.7,3934.6,3.77206579]
[1761366042771,9.5195,3934.7,3934.6,3.77206579]
[1761366043277,10.42882294,3934.7,3934.6,3.77206579]
[1761366043481,11.11302294,3934.7,3934.6,3.77206579]
[1761366044266,10.2037,3934.7,3934.6,3.77206579]
[1761366048379,1.82420085,3935.1,3934.9,0.9295]
[1761366048575,3.42890085,3935.4,3935.3,3.70546055]
[1761366048776,12.51790085,3935.4,3935.3,3.70546055]
[1761366050183,12.51790085,3935.4,3935.3,3.26396055]
[1761366051885,12.51390085,3935.4,3935.3,3.70546055]
[1761366052285,12.51390085,3935.4,3935.3,2.11106055]
[1761366053288,10.6897,3935.4,3935.3,2.11106055]
[1761366053789,10.6897,3935.4,3935.3,2.77596055]
[1761366057293,10.6897,3935.4,3935.3,2.11106055]
[1761366058699,10.6897,3935.4,3935.3,3.15276055]
[1761366062298,10.6897,3935.4,3935.3,2.52936055]
[1761366063400,10.6897,3935.4,3935.3,3.15276055]
[1761366063601,1.6047,3935.4,3935.3,3.56706055]
[1761366063795,10.6707,3935.4,3935.3,3.56706055]
[1761366070004,12.49490085,3935.4,3935.3,3.56706055]
[1761366071099,0.00300052,3935.6,3935.4,0.5726]
[1761366071400,1.00270052,3935.6,3935.5,3.76026055]
[1761366071606,10.05870052,3935.6,3935.5,3.76026055]
[1761366072206,10.44860052,3935.6,3935.5,3.76026055]
[1761366082416,9.45100052,3935.6,3935.5,3.76026055]
[1761366082616,9.45100052,3935.6,3935.5,1.6492]
[1761366082913,10.05870052,3935.6,3935.5,1.6492]
[1761366083115,10.44860052,3935.6,3935.5,1.3965]
[1761366083316,10.43360052,3935.6,3935.5,1.3965]
[1761366083618,10.43360052,3935.6,3935.5,3.50756055]
[1761366085618,10.43360052,3935.6,3935.5,1.3965]
[1761366085820,10.43360052,3935.6,3935.5,3.50756055]
[1761366087614,10.43360052,3935.6,3935.5,1.3965]
[1761366087917,10.43360052,3935.6,3935.5,3.50756055]
[1761366088114,10.43360052,3935.6,3935.5,2.11106055]
[1761366092625,1.3896,3935.4,3935.3,0.4132]
[1761366093015,1.3896,3935.4,3935.3,2.11106055]
[1761366097717,0.2297,3935.0,3934.8,0.9858]
[1761366097927,10.357,3934.9,3934.8,3.42416055]
[1761366098116,10.357,3934.9,3934.8,1.3131]
[1761366098322,10.357,3934.9,3934.8,3.42416055]
[1761366099428,11.72851763,3934.9,3934.8,3.42416055]
[1761366100122,11.72851763,3934.9,3934.8,2.52426055]
[1761366100323,10.357,3934.9,3934.8,2.11106055]
[1761366103823,0.5336,3934.8,3934.6,0.00280524]
[1761366104020,1.327,3934.7,3934.6,0.00280524]
[1761366104219,2.69726825,3934.7,3934.6,0.00280524]
[1761366104419,2.69726825,3934.7,3934.6,2.66486579]
[1761366105528,2.69726825,3934.7,3934.6,3.05136579]
[1761366106433,2.69726825,3934.7,3934.6,3.40026579]
[1761366107728,2.69726825,3934.7,3934.6,3.05136579]
[1761366108721,2.69726825,3934.7,3934.6,2.11386579]
[1761366109930,1.327,3934.7,3934.6,2.11386579]
[1761366110131,2.69658247,3934.7,3934.6,2.11386579]
[1761366112032,2.69658247,3934.7,3934.6,0.00280524]
[1761366112634,2.69658247,3934.7,3934.6,1.28920524]
[1761366112829,10.39958247,3934.7,3934.6,3.40026579]
[1761366113144,9.9774,3934.7,3934.6,3.40026579]
[1761366113728,10.357,3934.7,3934.6,3.40026579]
[1761366113927,10.358,3934.7,3934.6,3.40026579]
[1761366114743,1.36958247,3934.8,3934.7,1.2864]
[1761366114935,10.39958247,3934.8,3934.7,3.39746055]
[1761366115137,10.81338247,3934.8,3934.7,3.39746055]
[1761366115432,11.34698247,3934.8,3934.7,3.39746055]
[1761366117542,11.72658247,3934.8,3934.7,3.39746055]
[1761366119245,10.357,3934.8,3934.7,3.39746055]
[1761366128042,10.357,3934.8,3934.7,3.04856055]
[1761366132153,10.357,3934.8,3934.7,2.11106055]
[1761366132955,1.17,3934.7,3934.6,0.00280524]
[1761366133358,1.17,3934.7,3934.6,2.11386579]
[1761366137157,1.17,3934.7,3934.6,0.00280524]
[1761366137361,1.17,3934.7,3934.6,2.11386579]
[1761366138154,2.99420085,3934.7,3934.6,0.00280524]
[1761366138360,1.17,3934.7,3934.6,0.00280524]
[1761366138763,10.2,3934.7,3934.6,0.82480524]
[1761366138950,10.2,3934.7,3934.6,0.00280524]
[1761366142063,12.02929453,3934.7,3934.6,0.00280524]
[1761366144164,12.0289919,3934.7,3934.6,0.00280524]
[1761366145765,0.4951,3934.6,3934.0,3.6861]
[1761366145963,1.17,3934.1,3934.0,4.0298]
[1761366146162,10.2,3934.1,3934.0,4.0298]
[1761366146363,10.2,3934.1,3934.0,2.11106055]
[1761366146770,10.2,3934.1,3934.0,2.11288288]
[1761366148972,10.2,3934.1,3934.0,0.00182233]
[1761366149764,0.3313,3933.7,3933.6,3.2078]
[1761366149969,10.2,3933.7,3933.6,3.2078]
[1761366150167,11.57020474,3933.7,3933.6,5.31886055]
[1761366150871,11.72242047,3933.7,3933.6,5.32176091]
[1761366153074,10.35221573,3933.7,3933.6,5.32176091]
[1761366153266,10.35221573,3933.7,3933.6,3.21070036]
[1761366153468,10.35221573,3933.7,3933.6,0.00290036]
[1761366157372,10.35221573,3933.7,3933.2,3.2078]
[1761366157568,2.53835334,3933.4,3933.3,2.11106055]
[1761366157771,11.56835334,3933.4,3933.3,2.11106055]
[1761366158074,10.2,3933.4,3933.3,2.11106055]
[1761366158380,9.7049,3933.4,3933.3,2.11323932]
[1761366158878,10.1357,3933.4,3933.3,2.11323932]
[1761366160674,11.50405334,3933.4,3933.3,2.11323932]
[1761366162078,10.1357,3933.4,3933.3,2.11323932]
[1761366163679,11.50405334,3933.4,3933.3,2.11323932]
[1761366164080,11.50405334,3933.4,3933.3,0.00217877]
[1761366164379,11.50405334,3933.4,3932.8,0.02542718]
[1761366164380,1.0409,3932.9,3932.8,4.29102718]
[1761366164573,10.0709,3932.9,3932.8,4.29102718]
[1761366164773,10.0709,3932.9,3932.8,6.40208773]
[1761366165274,10.0709,3932.9,3932.8,6.40457576]
[1761366170986,9.3431,3932.9,3932.8,6.40457576]
[1761366171483,9.7739,3932.9,3932.8,6.40457576]
[1761366171983,10.0709,3932.9,3932.8,6.40457576]
[1761366172184,10.98282854,3932.9,3932.8,6.40457576]
[1761366172585,10.98282854,3932.9,3932.8,3.19677576]
[1761366174381,10.25502854,3932.9,3932.8,3.19677576]
[1761366174687,10.68582854,3932.9,3932.8,3.19677576]
[1761366174888,10.98282854,3932.9,3932.8,3.19677576]
[1761366175187,10.0709,3932.9,3932.8,3.19677576]
[1761366179084,11.43879281,3932.9,3932.8,3.19677576]
[1761366180091,2.40879281,3932.9,3932.8,3.19677576]
[1761366180290,11.43779281,3932.9,3932.8,3.19677576]
[1761366184095,10.0699,3932.9,3932.8,3.19677576]
[1761366187493,1.0409,3932.9,3932.8,3.19677576]
[1761366187797,2.5378919,3933.4,3933.3,0.9447]
[1761366187992,9.7369,3933.4,3933.3,0.9447]
[1761366188386,0.7089,3933.4,3933.3,3.05576055]
[1761366188585,11.10923337,3933.4,3933.3,3.05576055]
[1761366188789,11.38653337,3933.4,3933.3,3.05576055]
[1761366188991,10.0142,3933.4,3933.3,3.05576055]
[1761366190897,0.9862,3933.4,3933.3,3.05576055]
[1761366191097,10.0132,3933.4,3933.3,3.05576055]
[1761366192195,11.38498432,3933.4,3933.3,3.05576055]
[1761366192788,10.0132,3933.4,3933.3,2.38496055]
[1761366192989,10.0132,3933.4,3933.3,2.11106055]
[1761366193504,10.0132,3933.4,3933.3,2.51376055]
[1761366193692,10.0132,3933.4,3933.3,2.78766055]
[1761366194503,2.35763063,3933.4,3933.3,3.05576055]
[1761366195000,11.38463063,3933.4,3933.3,3.05576055]
[1761366196900,10.0132,3933.4,3933.3,3.05576055]
[1761366199504,1.37143063,3933.5,3933.4,0.9447]
[1761366199696,1.37143063,3933.5,3933.4,3.05576055]
[1761366200001,9.3161,3933.5,3933.4,3.05576055]
[1761366200202,9.7313,3933.5,3933.4,3.05576055]
[1761366200700,0.7053,3933.5,3933.4,3.05576055]
[1761366200901,9.7313,3933.5,3933.4,3.05576055]
[1761366201600,10.0086,3933.5,3933.4,3.05576055]
[1761366202702,10.0076,3933.5,3933.4,3.05576055]
[1761366203099,1.66153063,3933.6,3933.5,0.4027]
[1761366203303,9.025,3933.6,3933.5,3.21356055]
[1761366203504,10.0076,3933.6,3933.5,3.21356055]
[1761366207006,10.0076,3933.6,3933.5,0.9447]
[1761366207199,10.0076,3933.6,3933.5,3.05576055]
[1761366209108,11.37903063,3933.6,3933.5,3.05576055]
[1761366212714,11.37903063,3933.6,3933.5,2.11106055]
[1761366213409,11.37903063,3933.6,3933.5,2.51376055]
[1761366214812,2.35403063,3933.6,3933.5,2.78766055]
[1761366215013,11.37603063,3933.6,3933.5,2.78766055]
[1761366216215,10.0046,3933.6,3933.5,2.78766055]
[1761366220217,0.9826,3933.6,3933.5,3.05576055]
[1761366220407,10.0046,3933.6,3933.5,3.05576055]
[1761366228620,10.0046,3933.6,3933.5,0.9447]
[1761366228808,10.0046,3933.6,3933.5,3.05576055]
[1761366231625,10.0046,3933.6,3933.5,0.9447]
[1761366231826,0.9826,3933.6,3933.5,0.9447]
[1761366232028,10.0016,3933.6,3933.5,0.9447]
[1761366232528,10.0016,3933.6,3933.5,3.05576055]
[1761366239333,10.0016,3933.6,3933.5,0.6766]
[1761366239535,10.0016,3933.6,3933.5,2.78766055]
[1761366240237,10.0016,3933.6,3933.5,2.11106055]
[1761366241835,10.0016,3933.6,3933.5,2.44786055]
[1761366243434,10.0016,3933.6,3933.5,2.11106055]
[1761366244933,10.0016,3933.6,3933.5,2.44786055]
[1761366247031,10.0016,3933.6,3933.5,2.91346055]
[1761366247227,0.7053,3933.6,3933.5,3.04606055]
[1761366247445,2.3949919,3934.0,3933.8,0.3368]
[1761366247741,0.2201,3934.0,3933.9,2.91346055]
[1761366247929,9.2361,3934.0,3933.9,2.91346055]
[1761366248128,9.016,3934.0,3933.9,2.91346055]
[1761366248338,10.38831245,3934.0,3933.9,2.91346055]
[1761366249341,9.2441,3934.0,3933.9,2.91346055]
[1761366250337,0.2281,3934.0,3933.9,2.91346055]
[1761366250636,9.2431,3934.0,3933.9,2.91346055]
[1761366252347,10.15715105,3934.0,3933.9,2.91346055]
[1761366252538,1.14215105,3934.0,3933.9,2.91346055]
[1761366252740,0.4481,3933.7,3933.6,0.5425]
[1761366253039,10.72607958,3933.7,3933.6,0.7654]
[1761366253235,10.72607958,3933.7,3933.6,2.87646055]
[1761366261442,10.72607958,3933.7,3933.6,0.5425]
[1761366261643,0.798,3933.6,3933.5,2.43206055]
[1761366262760,0.798,3933.6,3933.5,2.65356055]
[1761366264746,0.798,3933.6,3933.5,2.87646055]
[1761366264949,0.798,3933.6,3933.5,3.01876055]
[1761366266545,0.798,3933.6,3933.5,5.1298211]
[1761366267655,0.798,3933.6,3933.5,3.01876055]
[1761366272450,0.798,3933.6,3933.5,0.9077]
[1761366272650,0.798,3933.6,3933.5,3.01876055]
[1761366272958,9.808,3933.6,3933.5,3.01876055]
[1761366275156,10.72207958,3933.6,3933.5,2.33256055]
[1761366276144,10.72207958,3933.6,3933.5,2.65356055]
[1761366276452,9.808,3933.6,3933.5,2.11106055]
[1761366276651,11.17911937,3933.6,3933.5,2.11106055]
[1761366280757,9.808,3933.6,3933.5,2.11106055]
[1761366280956,11.18035438,3933.6,3933.5,2.11106055]
[1761366289357,11.18035438,3933.6,3933.5,2.44076055]
[1761366291855,1.37235438,3933.6,3933.5,2.89496055]
[1761366292167,10.82755438,3933.6,3933.5,3.02946055]
[1761366292355,11.04955438,3933.6,3933.5,3.02946055]
[1761366296468,11.04955438,3933.6,3933.5,0.9184]
[1761366299369,11.04955438,3933.6,3933.5,0.7839]
[1761366300270,9.6772,3933.6,3933.5,0.7839]
[1761366301463,9.6772,3933.6,3933.5,2.89496055]
[1761366301864,9.6772,3933.6,3933.5,2.34256055]
[1761366302069,9.6772,3933.6,3933.5,2.11106055]
[1761366302461,9.3459,3933.6,3933.5,2.11106055]
[1761366302667,9.6757,3933.6,3933.5,2.11106055]
[1761366305265,9.6757,3933.6,3933.5,2.46086055]
[1761366305866,9.6757,3933.6,3933.5,2.67776055]
[1761366306172,9.6757,3933.6,3933.5,2.89876055]
[1761366313676,9.6757,3933.6,3933.5,0.7877]
[1761366313975,9.6757,3933.6,3933.5,2.89876055]
[1761366315276,9.6757,3933.6,3933.5,2.11106055]
[1761366326091,0.4726,3933.5,3933.0,0.5596]
[1761366326397,1.70030693,3933.1,3933.0,0.5596]
[1761366326694,10.69930693,3933.1,3933.0,2.67066055]
[1761366327590,10.69930693,3933.1,3933.0,2.11106055]
[1761366327796,9.4449,3933.1,3933.0,2.11106055]
[1761366328188,9.784,3933.1,3933.0,2.11106055]
[1761366330292,0.4726,3933.0,3932.8,0.02791521]
[1761366330499,0.785,3932.9,3932.8,2.13897576]
[1761366331992,0.785,3932.9,3932.8,0.02791521]
[1761366337497,0.785,3932.9,3932.8,0.35281521]
[1761366338400,0.785,3932.9,3932.8,2.93407576]
[1761366338401,9.783,3932.9,3932.8,2.93407576]
[1761366338597,0.9126671,3933.0,3932.9,0.7837]
[1761366338790,1.4707671,3933.3,3933.2,0.2355]
[1761366338995,10.4687671,3933.3,3933.2,2.89476055]
[1761366339407,10.6989671,3933.3,3933.2,2.89476055]
[1761366340092,1.7009671,3933.3,3933.2,2.89476055]
[1761366340295,10.6979671,3933.3,3933.2,2.89476055]
[1761366341003,1.7009671,3933.3,3933.2,2.89476055]
[1761366341307,10.6979671,3933.3,3933.2,2.89476055]
[1761366344311,9.7853,3933.3,3933.2,2.89476055]
[1761366350516,0.7883,3933.3,3933.2,2.89476055]
[1761366350715,9.7833,3933.3,3933.2,2.89476055]
[1761366351014,0.7883,3933.3,3933.2,2.89476055]
[1761366351215,9.7833,3933.3,3933.2,2.89476055]
[1761366352814,1.26982952,3933.4,3933.2,2.56066055]
[1761366353114,1.47138489,3933.7,3933.6,0.7837]
[1761366353311,0.5581,3933.7,3933.6,0.7837]
[1761366353514,9.5521,3933.7,3933.6,2.89476055]
[1761366354816,8.994,3933.7,3933.6,2.89476055]
[1761366360717,9.2175,3933.7,3933.6,2.89476055]
[1761366360918,9.5578,3933.7,3933.6,2.89476055]
[1761366362521,9.5578,3933.7,3933.6,6.10256055]
[1761366363721,1.70538489,3934.2,3933.7,0.3279]
[1761366363921,0.4518,3934.2,3934.1,0.7849]
[1761366364127,9.4428,3934.2,3934.1,0.7849]
[1761366364317,10.69638489,3934.2,3934.1,2.89596055]
[1761366365218,9.7831,3934.2,3934.1,2.89596055]
[1761366365425,10.69638489,3934.2,3934.1,2.89596055]
[1761366367528,1.70538489,3934.2,3934.1,2.89596055]
[1761366367730,10.69538489,3934.2,3934.1,2.89596055]
[1761366367928,10.69538489,3934.2,3934.1,2.11106055]
[1761366368123,10.69538489,3934.2,3933.8,0.3366]
[1761366368326,0.9239,3934.0,3933.9,2.11106055]
[1761366368529,0.4545,3933.8,3933.7,2.34386055]
[1761366368729,0.7891,3933.8,3933.7,2.57186055]
[1761366369131,0.7891,3933.8,3933.7,2.90846055]
[1761366370723,0.7891,3933.8,3933.7,6.11626055]
[1761366373325,9.7781,3933.8,3933.7,6.11626055]
[1761366375435,9.4435,3933.8,3933.7,6.11626055]
[1761366375638,9.7781,3933.8,3933.7,6.11626055]
[1761366378236,0.7891,3933.8,3933.7,6.11626055]
[1761366378429,9.7771,3933.8,3933.7,6.11626055]
[1761366380229,9.2085,3933.8,3933.7,6.11626055]
[1761366381140,8.987,3933.8,3933.7,6.11626055]
[1761366382439,9.90028489,3933.8,3933.7,6.11626055]
[1761366383335,0.91328489,3933.8,3933.7,6.11626055]
[1761366383538,9.90028489,3933.8,3933.7,6.11626055]
[1761366384042,10.12178489,3933.8,3933.7,6.11626055]
[1761366384643,10.68938489,3933.8,3933.7,5.65546055]
[1761366384940,10.68938489,3933.8,3933.7,5.88826055]
[1761366385140,10.68938489,3933.8,3933.7,6.11626055]
[1761366387045,1.70238489,3933.8,3933.7,6.11626055]
[1761366387247,10.68938489,3933.8,3933.7,6.11626055]
[1761366389344,10.68938489,3933.8,3933.7,4.0052]
[1761366389546,10.68938489,3933.8,3933.7,6.11626055]
[1761366392452,10.68938489,3933.8,3933.7,4.0052]
[1761366392639,10.68938489,3933.8,3933.7,2.90846055]
[1761366392843,10.68938489,3933.8,3933.7,6.11626055]
[1761366395153,0.91328489,3933.8,3933.7,6.11626055]
[1761366395445,0.91328489,3934.0,3933.9,0.7974]
[1761366395640,0.91328489,3934.0,3933.9,2.90846055]
[1761366405256,0.91328489,3934.1,3934.0,0.6863]
[1761366405457,9.89528489,3934.1,3934.0,3.01286055]
[1761366405951,10.44318489,3934.1,3934.0,3.01286055]
[1761366408654,10.44318489,3934.1,3934.0,0.9018]
[1761366408853,10.44318489,3934.1,3934.0,3.01286055]
[1761366409153,1.46118489,3934.1,3934.0,3.01286055]
[1761366409361,10.44318489,3934.1,3934.0,3.01286055]
[1761366410461,1.46118489,3934.1,3934.0,0.9018]
[1761366410761,9.78778489,3934.1,3934.0,0.9018]
[1761366411458,10.10718489,3934.1,3934.0,0.9018]
[1761366414068,1.46118489,3934.1,3934.0,0.9018]
[1761366415168,1.68058489,3934.1,3934.0,0.9018]
[1761366415471,1.68058489,3934.1,3934.0,3.01286055]
[1761366420868,10.65958489,3934.1,3934.0,3.01286055]
[1761366424077,1.68058489,3934.1,3934.0,3.01286055]
[1761366424274,10.65958489,3934.1,3934.0,3.01286055]
[1761366424576,10.65858489,3934.1,3934.0,3.01286055]
[1761366425877,10.65858489,3934.1,3934.0,6.22066055]
[1761366426980,1.68058489,3934.1,3934.0,6.22066055]
[1761366427279,10.63858489,3934.1,3934.0,6.22066055]
[1761366428174,10.63858489,3934.1,3934.0,4.1096]
[1761366428377,10.63858489,3934.1,3934.0,6.22066055]
[1761366429682,1.68058489,3934.1,3934.0,6.22066055]
[1761366429873,10.65758489,3934.1,3934.0,6.22066055]
[1761366431886,1.68058489,3934.1,3934.0,6.22066055]
[1761366433187,1.68058489,3934.1,3934.0,4.1096]
[1761366433391,1.68058489,3934.1,3934.0,6.22066055]
[1761366433687,1.68058489,3934.1,3934.0,5.54016055]
[1761366433888,1.68058489,3934.1,3934.0,5.31886055]
[1761366435784,0.7673,3934.1,3934.0,3.2078]
[1761366437289,2.13648105,3934.1,3934.0,3.2078]
[1761366441591,0.4611,3933.6,3933.5,4.45158131]
[1761366441792,10.67686139,3933.6,3933.5,3.2078]
[1761366441986,0.7868,3933.1,3933.0,3.89148131]
[1761366442192,9.7618,3933.1,3933.0,3.2078]
[1761366442690,9.7618,3933.1,3933.0,3.547]
[1761366445597,9.7618,3933.1,3933.0,3.7679]
[1761366451494,9.7618,3933.1,3933.0,3.4287]
[1761366451701,9.7618,3933.1,3933.0,3.2078]
[1761366453606,0.9162,3932.5,3932.4,0.68368131]
[1761366453805,0.7868,3932.1,3932.0,3.7679]
[1761366454001,9.7618,3932.1,3932.0,3.7679]
[1761366454201,9.7618,3932.1,3932.0,5.87896055]
[1761366454695,9.76431075,3932.1,3932.0,5.88155687]
[1761366460608,9.76431075,3932.1,3932.0,2.67375687]
[1761366460807,9.76431075,3932.1,3932.0,5.88155687]
[1761366461202,9.76431075,3932.1,3932.0,6.23675687]
[1761366463509,8.97751075,3932.1,3932.0,6.23675687]
[1761366463717,0.00251075,3932.1,3932.0,6.23675687]
[1761366464810,0.78721075,3932.1,3932.0,6.23675687]
[1761366472523,0.22331075,3932.1,3932.0,6.23675687]
[1761366473517,0.78721075,3932.1,3932.0,6.23675687]
[1761366475934,0.78721075,3932.1,3932.0,3.02895687]
[1761366476234,0.78721075,3932.1,3932.0,6.23675687]
[1761366478948,0.22331075,3932.1,3932.0,6.23675687]
[1761366479137,0.00251075,3932.1,3932.0,6.23675687]
[1761366479334,0.5625,3932.8,3932.7,0.3227]
[1761366479537,8.4985,3932.8,3932.7,0.7756]
[1761366479733,8.4985,3932.8,3932.7,2.88666055]
[1761366479929,9.63422306,3932.8,3932.7,2.88666055]
[1761366480333,9.63610894,3932.8,3932.7,2.88666055]
[1761366481438,10.67310894,3932.8,3932.7,2.88666055]
[1761366482345,9.75798588,3932.8,3932.7,2.88666055]
[1761366483348,9.75798588,3932.8,3932.7,2.11106055]
[1761366483544,9.75798588,3932.8,3932.5,3.5305]
[1761366483751,1.69787831,3932.7,3932.6,2.11106055]
[1761366483943,1.69787831,3932.7,3932.6,2.43376055]
[1761366484449,1.69787831,3932.7,3932.6,2.66346055]
[1761366484653,10.67087831,3932.7,3932.6,2.66346055]